bitfinex/quotes_ETHUSD_20260302
["timestamp","ask_amount","ask_price","bid_price","bid_amount"]
[1772480306099,0.002,2040.2,2039.1,0.001]
[1772480306100,4.5526,2039.8,2038.6,0.001]
[1772480306296,1.29,2040.1,2038.6,0.001]
[1772480306297,4.5526,2039.6,2038.6,0.001]
[1772480306597,4.5526,2039.2,2038.4,0.001]
[1772480306899,4.5526,2039.2,2038.5,0.002]
[1772480307879,5.77863109,2039.1,2038.5,0.002]
[1772480308095,4.5526,2039.0,2038.5,0.002]
[1772480309174,1.22603109,2039.1,2038.5,7.00127301]
[1772480309399,1.22603109,2039.1,2038.7,0.001]
[1772480310010,4.90612436,2039.2,2038.7,0.001]
[1772480310190,4.90612436,2039.2,2038.8,0.002]
[1772480312303,9.45872436,2039.2,2038.8,0.002]
[1772480314886,4.5526,2039.1,2038.7,0.001]
[1772480315421,4.90612436,2039.2,2038.7,0.001]
[1772480317432,4.5526,2039.1,2038.7,0.001]
[1772480318718,1.22801508,2039.2,2038.7,0.001]
[1772480320145,1.22801508,2039.2,2038.7,4.59521449]
[1772480320699,4.90336476,2039.6,2038.9,3.63120987]
[1772480320700,1.22573406,2039.6,2038.9,3.63120987]
[1772480320970,1.22573406,2039.6,2039.0,4.59421449]
[1772480322380,0.002,2039.2,2039.0,4.59421449]
[1772480324405,0.002,2039.2,2039.1,1.22603109]
[1772480325606,0.002,2039.2,2038.9,0.001]
[1772480326874,4.5546,2039.2,2038.9,0.001]
[1772480327070,4.5546,2039.2,2038.7,1.978]
[1772480328107,4.5546,2039.2,2038.7,3.20425843]
[1772480329001,1.22603109,2039.1,2038.7,1.978]
[1772480329671,0.002,2039.2,2038.8,4.56492882]
[1772480329897,1.22797363,2039.2,2038.8,4.56492882]
[1772480330300,1.22797997,2039.2,2038.8,4.56492882]
[1772480330698,1.22797185,2039.2,2038.8,4.56492882]
[1772480331315,0.002,2039.2,2038.8,5.79112291]
[1772480331502,0.002,2039.2,2038.7,1.978]
[1772480331709,0.002,2039.2,2038.8,4.56492882]
[1772480334524,0.002,2039.2,2039.0,0.001]
[1772480336442,5.89455748,2039.2,2039.0,0.001]
[1772480338755,1.22783518,2039.5,2039.1,4.56492882]
[1772480338919,4.66658652,2039.4,2039.0,1.981]
[1772480339322,1.22783518,2039.5,2039.0,1.981]
[1772480340636,5.8944217,2039.5,2039.0,1.981]
[1772480342323,1.22783518,2039.5,2039.0,6.54592882]
[1772480342627,1.22783518,2039.5,2039.1,4.56492882]
[1772480342951,0.002,2039.5,2039.1,4.56492882]
[1772480344757,1.22553912,2040.0,2039.2,4.56492882]
[1772480344962,4.66658652,2039.9,2039.2,4.56492882]
[1772480345153,4.66658652,2039.9,2039.1,4.56492882]
[1772480346281,4.66658652,2039.9,2039.0,1.981]
[1772480346771,4.66658652,2039.9,2039.2,0.001]
[1772480347081,4.66858652,2039.7,2039.2,0.001]
[1772480347461,1.22759915,2039.9,2039.3,4.56492882]
[1772480348276,4.66658652,2039.8,2039.2,0.001]
[1772480349854,5.89225696,2039.7,2039.2,0.001]
[1772480350455,5.89225696,2039.7,2038.8,0.001]
[1772480350456,4.66658652,2039.6,2038.8,0.001]
[1772480350680,4.66658652,2039.5,2038.8,0.001]
[1772480352086,5.89243726,2039.4,2038.8,0.001]
[1772480352889,4.66658652,2039.3,2038.8,0.001]
[1772480354797,1.22597096,2039.2,2038.8,0.001]
[1772480358284,7.91901591,2039.4,2038.8,0.001]
[1772480358488,3.36728875,2039.4,2038.8,4.51848691]
[1772480358789,9.45561103,2039.5,2039.0,0.001]
[1772480359085,7.91901591,2039.4,2039.0,0.001]
[1772480360392,1.22591085,2039.3,2039.0,0.001]
[1772480360691,4.55172716,2039.2,2038.8,0.001]
[1772480361288,1.22591085,2039.3,2038.8,4.51848691]
[1772480363394,5.77763801,2039.3,2038.8,0.001]
[1772480365613,4.55172716,2039.2,2038.8,0.001]
[1772480366485,1.22603109,2039.1,2038.8,0.001]
[1772480366692,7.91901591,2038.7,2038.5,0.001]
[1772480366887,4.55172716,2038.6,2038.0,0.001]
[1772480367315,7.91901591,2038.5,2038.0,0.001]
[1772480367619,4.55172716,2038.4,2038.0,0.001]
[1772480367817,7.91901591,2038.2,2037.7,0.001]
[1772480368015,4.55172716,2038.2,2037.7,0.001]
[1772480368632,1.22681322,2037.8,2037.5,0.001]
[1772480368802,5.77854038,2037.8,2037.2,0.001]
[1772480369002,4.55172716,2037.7,2037.2,0.001]
[1772480369199,4.55172716,2037.7,2036.8,1.22741555]
[1772480369524,4.55172716,2037.7,2036.8,4.51748691]
[1772480369704,4.55172716,2037.3,2036.7,0.001]
[1772480369904,4.55172716,2037.6,2036.8,4.51748691]
[1772480370118,4.55172716,2037.5,2036.8,4.51748691]
[1772480370508,7.97654038,2037.8,2036.8,4.51748691]
[1772480370705,5.77854038,2037.8,2037.0,4.51748691]
[1772480370906,5.77854038,2037.8,2037.2,4.51748691]
[1772480370907,1.22681322,2037.8,2037.2,4.51748691]
[1772480371829,4.90686366,2038.0,2037.2,4.51748691]
[1772480372132,4.55172716,2037.9,2037.7,0.001]
[1772480372332,4.55172716,2037.9,2037.0,4.51748691]
[1772480372629,1.22667798,2038.1,2037.0,4.51748691]
[1772480372834,4.90582218,2038.4,2037.6,4.51748691]
[1772480372835,1.226557,2038.3,2037.6,4.51748691]
[1772480373040,3.84819581,2038.5,2037.6,4.51748691]
[1772480373344,2.62176487,2038.5,2037.6,4.51748691]
[1772480374704,3.84816699,2038.5,2037.8,4.51748691]
[1772480375127,3.84816699,2038.5,2037.7,1.22687343]
[1772480375317,4.55172716,2038.4,2037.6,3.19593335]
[1772480375618,4.55172716,2038.4,2037.6,7.71342026]
[1772480375830,4.55172716,2038.4,2037.4,0.001]
[1772480375831,4.55172716,2038.4,2037.4,5.74549462]
[1772480376234,4.55172716,2038.4,2037.5,4.51748691]
[1772480376625,4.55172716,2038.4,2037.4,5.74549462]
[1772480376823,1.22651228,2038.3,2037.4,5.74549462]
[1772480377440,5.77823944,2038.3,2037.4,5.74549462]
[1772480378144,4.55172716,2038.1,2037.4,0.001]
[1772480378347,7.91901591,2037.9,2037.4,0.001]
[1772480378724,7.91901591,2038.2,2037.4,4.51848691]
[1772480378924,4.55172716,2038.0,2037.4,0.001]
[1772480379755,1.22663264,2038.1,2037.4,4.51848691]
[1772480380850,4.90653059,2038.2,2037.5,5.74448077]
[1772480382050,4.90653059,2038.2,2037.6,4.51748691]
[1772480382051,1.22657246,2038.2,2037.6,4.51748691]
[1772480383235,3.36728875,2037.9,2037.4,0.001]
[1772480383467,4.55172716,2037.8,2037.0,5.74475749]
[1772480383991,4.55172716,2037.8,2037.0,4.51748691]
[1772480384196,4.55172716,2037.8,2037.0,5.7447815]
[1772480384358,4.55172716,2037.8,2037.2,0.001]
[1772480384561,4.55372716,2037.8,2037.2,0.001]
[1772480384766,0.002,2037.8,2037.2,4.51848691]
[1772480385173,0.002,2037.8,2037.4,4.51748691]
[1772480385601,0.002,2038.0,2037.6,4.51748691]
[1772480387193,0.002,2038.0,2037.3,5.74460122]
[1772480387356,0.002,2038.0,2037.4,1.966]
[1772480389293,0.002,2038.0,2037.4,3.1930166]
[1772480389661,0.002,2038.0,2037.4,1.966]
[1772480390285,4.14938166,2038.0,2037.4,1.966]
[1772480390884,4.14938166,2038.0,2037.2,0.001]
[1772480391087,4.14738166,2037.8,2037.2,0.001]
[1772480391786,1.22687343,2037.7,2037.2,0.001]
[1772480392296,3.36728875,2037.5,2037.0,0.001]
[1772480393359,7.51467041,2037.5,2037.0,0.001]
[1772480394088,1.22705408,2037.4,2037.0,0.001]
[1772480396598,4.90821635,2037.6,2037.2,0.001]
[1772480398669,3.36728875,2037.3,2036.7,4.34437339]
[1772480398876,1.22705408,2037.4,2036.8,4.34337339]
[1772480399295,1.22705408,2037.4,2036.5,0.001]
[1772480399296,7.51467041,2037.1,2036.5,0.001]
[1772480399501,4.14738166,2037.0,2036.1,4.34337339]
[1772480399667,3.36728875,2036.8,2036.1,4.34337339]
[1772480400199,7.51467041,2036.8,2036.1,4.34337339]
[1772480400375,2.202,2037.3,2036.4,4.34337339]
[1772480400901,1.22717455,2037.2,2036.4,5.57102902]
[1772480401100,1.22717455,2037.2,2036.4,4.34337339]
[1772480401474,5.37455621,2037.2,2036.4,4.34337339]
[1772480402710,1.22735529,2036.9,2036.3,0.001]
[1772480403029,4.14738166,2036.8,2036.3,0.001]
[1772480403185,4.14738166,2036.6,2036.2,0.001]
[1772480403391,7.51467041,2036.4,2035.5,4.34337339]
[1772480404348,3.36728875,2036.4,2035.5,4.34337339]
[1772480404490,3.42935529,2036.9,2035.5,4.34337339]
[1772480405003,1.22735529,2036.9,2035.7,4.34337339]
[1772480405339,1.22717455,2037.2,2035.9,4.94337339]
[1772480405694,2.41217568,2036.7,2035.9,4.34337339]
[1772480405946,2.41217568,2037.0,2035.9,4.34337339]
[1772480406200,6.55955734,2037.0,2035.9,4.34337339]
[1772480407404,1.22735529,2036.9,2036.1,4.34337339]
[1772480408221,1.22735529,2036.9,2036.1,4.34437339]
[1772480409022,2.41217568,2036.6,2036.1,4.34437339]
[1772480409241,5.37473695,2036.9,2036.1,0.001]
[1772480409443,2.41217568,2036.7,2036.1,4.34437339]
[1772480409732,1.22735529,2036.9,2036.2,4.34337339]
[1772480411429,1.22735529,2036.9,2036.3,4.34337339]
[1772480412029,1.22932235,2037.0,2036.3,4.34337339]
[1772480412723,1.22930497,2037.0,2036.3,4.34337339]
[1772480413104,0.002,2037.0,2036.3,4.34337339]
[1772480413297,0.002,2037.0,2036.5,4.34337339]
[1772480415424,0.002,2037.0,2036.5,5.57096518]
[1772480415619,0.002,2037.0,2036.5,4.34337339]
[1772480415823,2.41417568,2037.0,2036.2,4.15363231]
[1772480416014,2.41417568,2037.0,2036.1,0.001]
[1772480416015,2.41217568,2036.7,2036.1,0.001]
[1772480416815,4.01879229,2036.9,2036.1,1.22882107]
[1772480417018,2.41417568,2037.0,2036.1,5.38245338]
[1772480417629,6.54202595,2037.0,2036.1,5.38245338]
[1772480418915,5.35520556,2036.9,2036.1,5.38245338]
[1772480419116,4.12785027,2036.8,2036.1,0.001]
[1772480419622,4.12785027,2036.8,2036.1,1.22883557]
[1772480420022,1.22735529,2036.9,2036.2,4.0508853]
[1772480421136,1.22735529,2036.9,2036.3,0.001]
[1772480421924,4.82435136,2036.4,2035.9,0.001]
[1772480422127,2.41217568,2036.1,2035.6,0.001]
[1772480422329,2.41217568,2035.8,2035.1,1.22840166]
[1772480422707,2.41217568,2035.8,2035.0,5.9118853]
[1772480423014,1.22807879,2035.7,2035.0,7.14037831]
[1772480424826,1.22807879,2035.7,2035.0,1.861]
[1772480425958,1.22807879,2035.7,2035.0,3.08947787]
[1772480426614,1.22807879,2035.7,2035.0,7.14036317]
[1772480426814,1.22789783,2036.1,2035.1,4.0508853]
[1772480427240,1.22789783,2036.1,2035.2,5.2792658]
[1772480427459,4.91104674,2036.3,2035.3,4.0508853]
[1772480428423,1.22771693,2036.3,2035.3,4.0508853]
[1772480428722,7.3228683,2036.4,2035.3,4.0508853]
[1772480428723,1.22770597,2036.4,2035.3,4.0508853]
[1772480428953,1.22753608,2036.6,2035.3,4.0508853]
[1772480429325,1.22753608,2036.6,2035.5,4.6508853]
[1772480429523,1.22753608,2036.6,2035.6,6.0078853]
[1772480429751,1.22753608,2036.6,2035.7,4.0508853]
[1772480431747,2.41217568,2036.5,2035.7,4.0508853]
[1772480431956,2.41217568,2036.5,2035.7,5.2789555]
[1772480432868,9.03780583,2036.7,2035.8,4.0508853]
[1772480432869,11.44998151,2036.7,2035.8,4.0508853]
[1772480433936,2.41217568,2036.4,2035.9,0.001]
[1772480434538,4.12785027,2036.6,2035.9,0.001]
[1772480436064,1.22759636,2036.5,2035.9,0.001]
[1772480436859,2.41217568,2036.4,2035.9,0.001]
[1772480437369,2.41217568,2036.4,2035.7,0.001]
[1772480437370,2.41217568,2036.1,2035.7,0.001]
[1772480437656,4.12785027,2036.0,2035.4,0.001]
[1772480437863,4.12785027,2036.0,2035.4,1.22925836]
[1772480438176,1.22777723,2036.2,2035.5,5.27906625]
[1772480439272,4.12785027,2036.1,2035.4,0.001]
[1772480439433,4.12785027,2036.1,2035.4,1.22925789]
[1772480439630,1.22777723,2036.2,2035.5,4.0508853]
[1772480440770,1.22777723,2036.2,2035.5,5.27907925]
[1772480441569,1.22777723,2036.2,2035.4,4.91402458]
[1772480441570,4.12785027,2036.1,2035.4,0.001]
[1772480442277,4.12785027,2036.1,2035.4,5.28013555]
[1772480442577,1.22789783,2036.0,2035.4,4.0518853]
[1772480443371,1.22789783,2036.0,2035.4,5.28014423]
[1772480443558,1.22771693,2036.3,2035.5,4.0508853]
[1772480444174,2.41217568,2035.7,2034.8,5.27945337]
[1772480444477,2.41217568,2035.7,2034.3,4.9155869]
[1772480444478,2.41217568,2035.4,2034.6,4.0508853]
[1772480444688,2.41217568,2035.1,2034.6,4.0508853]
[1772480444983,1.22813912,2035.6,2034.7,4.0508853]
[1772480445372,4.91216613,2035.8,2034.7,4.0508853]
[1772480445673,11.45219208,2035.8,2034.9,4.0508853]
[1772480445866,7.32434181,2035.8,2034.9,4.0508853]
[1772480446458,3.64019414,2035.8,2035.0,4.0508853]
[1772480446857,3.64019414,2035.8,2035.5,0.001]
[1772480450593,1.22801846,2035.8,2035.5,0.001]
[1772480451959,1.22801846,2035.8,2035.2,0.001]
[1772480451960,3.64019414,2035.8,2035.2,0.001]
[1772480452161,2.41217568,2035.5,2034.9,3.67194078]
[1772480452766,3.86488685,2035.7,2034.9,3.67194078]
[1772480453389,3.86488685,2035.7,2034.9,4.90049779]
[1772480453591,3.86488685,2035.7,2034.9,3.67194078]
[1772480453985,1.22813912,2035.6,2035.0,3.67194078]
[1772480454498,2.41217568,2035.1,2034.2,3.67194078]
[1772480454662,2.41217568,2035.1,2034.4,3.67194078]
[1772480454856,2.41217568,2035.2,2034.4,3.67194078]
[1772480455359,2.203,2035.5,2034.4,3.67194078]
[1772480455360,2.41217568,2035.5,2034.4,3.67194078]
[1772480455687,2.202,2035.4,2034.4,3.67194078]
[1772480455866,1.22813912,2035.6,2034.4,3.67194078]
[1772480456070,2.202,2035.5,2034.6,3.67194078]
[1772480456278,4.61417568,2035.6,2034.6,3.67194078]
[1772480456594,2.202,2035.6,2034.6,3.67194078]
[1772480457358,4.91255649,2035.7,2034.6,3.67194078]
[1772480457957,4.91255649,2035.7,2034.8,3.67194078]
[1772480458700,4.91255649,2035.7,2034.6,4.91472944]
[1772480458701,2.41217568,2035.4,2034.6,3.67194078]
[1772480458889,2.41217568,2035.4,2034.0,2.48216869]
[1772480458890,2.41217568,2035.1,2034.7,3.67194078]
[1772480459061,2.41217568,2035.1,2034.6,0.001]
[1772480460073,1.22850122,2035.0,2034.6,0.001]
[1772480460494,2.41217568,2034.9,2034.4,3.67294078]
[1772480460693,1.22850122,2035.0,2034.2,3.67194078]
[1772480460694,2.41217568,2034.6,2034.2,3.67194078]
[1772480460995,2.41217568,2034.6,2034.0,7.38320782]
[1772480461194,2.41217568,2034.6,2034.0,6.15410947]
[1772480461592,6.27706253,2034.9,2034.1,3.67194078]
[1772480461974,2.41217568,2034.3,2033.7,3.67194078]
[1772480462965,4.82435136,2034.6,2033.1,5.25080563]
[1772480462966,11.10141389,2034.0,2033.1,4.90158663]
[1772480463285,6.27706253,2034.0,2033.1,4.90158663]
[1772480463494,3.86488685,2034.0,2033.2,3.67194078]
[1772480463709,6.27706253,2034.3,2033.3,3.67194078]
[1772480464195,1.22896993,2034.3,2033.5,3.67194078]
[1772480465297,1.22892242,2034.4,2033.5,3.67194078]
[1772480465797,1.22892242,2034.4,2033.5,5.61494078]
[1772480466401,4.91535328,2034.5,2033.7,3.67194078]
[1772480466594,1.22880314,2034.5,2033.7,3.67194078]
[1772480467072,8.47944481,2034.5,2033.7,3.67194078]
[1772480467274,3.86488685,2034.4,2033.7,3.67194078]
[1772480469177,3.38575482,2034.2,2033.5,3.17237512]
[1772480469391,4.91536114,2034.5,2033.6,3.67194078]
[1772480470107,5.09344845,2034.9,2033.6,3.67194078]
[1772480470801,3.86488685,2034.6,2033.6,3.67194078]
[1772480471102,7.25064167,2034.4,2033.6,3.67194078]
[1772480471514,1.22892395,2034.3,2033.6,4.90124266]
[1772480472701,1.22892395,2034.3,2033.6,3.67194078]
[1772480472903,1.22892395,2034.3,2033.8,0.001]
[1772480473103,7.25064167,2034.1,2033.3,6.84346361]
[1772480473277,3.38575482,2034.1,2033.5,0.001]
[1772480473478,1.22910521,2034.0,2033.5,0.001]
[1772480473994,1.22900574,2034.2,2033.5,3.67294078]
[1772480474904,3.38575482,2034.0,2033.5,0.001]
[1772480475206,7.01590737,2034.0,2033.5,0.001]
[1772480475405,1.22900574,2034.2,2033.5,0.001]
[1772480475781,4.85915829,2034.2,2033.5,0.001]
[1772480476282,4.85915829,2034.2,2033.5,3.87245846]
[1772480476474,1.22900574,2034.2,2033.5,3.87245846]
[1772480477383,3.38575482,2034.1,2033.5,3.87245846]
[1772480477706,3.38575482,2034.1,2033.5,1.23039601]
[1772480477904,3.9210668,2034.1,2032.5,3.86217411]
[1772480478206,3.9210668,2033.9,2032.9,3.86217411]
[1772480479109,5.15007254,2034.2,2032.9,3.86217411]
[1772480479982,5.15007254,2034.2,2033.1,3.86217411]
[1772480480808,1.22900574,2034.2,2033.1,3.86217411]
[1772480481808,0.002,2034.3,2033.1,3.86217411]
[1772480482010,0.002,2034.3,2033.3,3.86217411]
[1772480482192,0.002,2034.3,2033.5,3.86217411]
[1772480483682,0.002,2034.3,2033.7,0.6]
[1772480484028,0.002,2034.3,2034.0,3.86217411]
[1772480484323,0.002,2034.3,2034.1,5.80117411]
[1772480485509,0.002,2034.5,2034.2,3.86217411]
[1772480485884,0.002,2034.8,2034.3,3.86217411]
[1772480486092,1.2283049,2035.4,2034.5,3.86217411]
[1772480486310,1.2283049,2035.4,2034.7,3.86217411]
[1772480489014,0.002,2035.6,2034.9,3.86217411]
[1772480491201,0.002,2035.6,2034.9,5.0906933]
[1772480491799,3.9230668,2035.6,2034.4,3.86217411]
[1772480492117,3.38575482,2035.4,2034.8,1.939]
[1772480492421,3.9210668,2035.5,2034.9,1.939]
[1772480493026,0.002,2035.6,2035.0,3.86217411]
[1772480493228,0.002,2035.6,2035.1,5.09061497]
[1772480493918,0.002,2035.6,2035.2,3.86217411]
[1772480495203,0.002,2035.6,2035.3,1.22832014]
[1772480495406,0.002,2035.6,2035.4,1.94]
[1772480496932,0.002,2035.8,2035.4,5.80217411]
[1772480497713,0.002,2035.8,2035.4,1.94]
[1772480499932,3.38775482,2035.8,2035.2,3.86217411]
[1772480500137,3.38775482,2035.8,2035.3,1.941]
[1772480500303,0.002,2035.6,2035.3,1.941]
[1772480501733,0.002,2035.6,2035.1,1.22841111]
[1772480501937,0.002,2035.6,2035.0,1.22945717]
[1772480502232,7.30682162,2035.5,2035.0,1.943]
[1772480502426,3.9230668,2035.6,2035.0,5.80517411]
[1772480502822,3.9230668,2035.6,2035.0,7.03366976]
[1772480507050,1.22819945,2035.5,2035.0,7.03366976]
[1772480509144,5.15125332,2035.6,2035.1,3.93394071]
[1772480509348,1.23018652,2035.6,2035.1,3.93394071]
[1772480511268,0.002,2035.6,2035.2,3.93394071]
[1772480513345,0.002,2035.6,2035.1,3.93394071]
[1772480514145,0.002,2035.6,2035.2,0.001]
[1772480514146,0.002,2035.4,2035.2,0.001]
[1772480514345,0.002,2035.4,2035.2,3.93494071]
[1772480515948,0.002,2035.4,2035.2,0.001]
[1772480517699,3.77429091,2035.3,2035.0,0.001]
[1772480517977,4.61423207,2035.1,2034.8,1.953]
[1772480518185,1.22847725,2035.1,2034.7,1.953]
[1772480518489,3.77429091,2034.9,2034.5,0.001]
[1772480518693,3.77429091,2034.9,2034.3,1.952]
[1772480518893,3.77429091,2034.9,2034.3,3.18091403]
[1772480519092,3.77429091,2034.9,2034.3,7.11485474]
[1772480519394,5.00276816,2035.1,2034.4,3.93394071]
[1772480520383,5.00276816,2035.1,2034.4,5.16280033]
[1772480520993,1.22847725,2035.1,2034.5,3.93394071]
[1772480521594,3.77429091,2035.0,2034.4,1.22885962]
[1772480521802,3.77429091,2035.0,2034.5,1.952]
[1772480522183,1.2285616,2034.9,2034.5,1.952]
[1772480522380,7.16004573,2034.8,2034.2,5.88594071]
[1772480522700,3.77429091,2034.7,2034.0,1.22910521]
[1772480522868,3.77429091,2034.7,2034.1,3.93394071]
[1772480523398,7.16004573,2034.5,2033.9,3.93494071]
[1772480523603,7.16004573,2034.5,2033.9,5.16409846]
[1772480523889,3.77429091,2034.7,2034.0,3.93394071]
[1772480524192,1.22874275,2034.6,2034.1,5.16298549]
[1772480525198,3.38575482,2034.5,2034.0,1.953]
[1772480525399,7.16004573,2034.5,2034.0,1.953]
[1772480526201,7.16004573,2034.5,2033.8,1.953]
[1772480526202,7.16004573,2034.2,2033.8,1.953]
[1772480526512,6.19411214,2033.9,2033.3,1.954]
[1772480527219,3.77429091,2034.3,2033.4,3.93394071]
[1772480527694,6.19411214,2034.3,2033.4,3.93394071]
[1772480528095,6.19411214,2034.3,2034.0,0.001]
[1772480528294,6.19411214,2034.3,2033.4,3.93394071]
[1772480528295,5.00325623,2034.3,2033.6,3.93394071]
[1772480528597,5.00321534,2034.3,2033.8,0.001]
[1772480529998,7.42303657,2034.3,2033.8,0.001]
[1772480531190,5.00321534,2034.3,2033.8,0.001]
[1772480535125,5.00321534,2034.3,2033.4,4.91782683]
[1772480535126,3.88119116,2034.0,2033.3,3.6829795]
[1772480535347,6.30101239,2033.7,2033.1,5.6349795]
[1772480535626,3.88119116,2033.7,2033.1,5.6349795]
[1772480536203,4.91680894,2033.9,2033.2,3.6829795]
[1772480536401,5.11030434,2034.0,2033.2,3.6829795]
[1772480536603,5.11030434,2034.0,2033.4,3.6829795]
[1772480537335,3.88119116,2033.7,2033.1,4.96230479]
[1772480537497,3.64893441,2034.0,2033.2,3.73270291]
[1772480538223,1.22909845,2034.1,2033.4,3.73270291]
[1772480538790,4.87614594,2034.2,2033.4,3.73270291]
[1772480538998,4.87614594,2034.2,2033.6,3.73270291]
[1772480539222,3.64712252,2034.2,2033.6,3.73270291]
[1772480539528,4.87611726,2034.2,2033.6,3.73270291]
[1772480541502,4.87611726,2034.2,2033.7,1.22928652]
[1772480541702,3.64712252,2034.4,2033.8,3.73270291]
[1772480542327,0.002,2034.0,2033.8,3.73270291]
[1772480543520,0.002,2034.0,2033.9,1.22916564]
[1772480545331,0.002,2034.0,2033.8,4.9618882]
[1772480545729,0.002,2034.0,2033.7,4.91704292]
[1772480545730,0.002,2034.0,2033.6,4.96204988]
[1772480545917,0.002,2034.0,2033.7,5.68870291]
[1772480546104,0.002,2034.0,2033.7,3.73270291]
[1772480547837,0.002,2034.0,2033.8,1.22922607]
[1772480548836,3.64912252,2034.0,2033.4,1.23042542]
[1772480549027,3.64912252,2034.0,2033.4,4.96312833]
[1772480550221,0.002,2034.0,2033.5,3.73270291]
[1772480551218,3.64912252,2034.3,2033.5,3.73270291]
[1772480551434,0.002,2034.3,2033.5,3.73270291]
[1772480552444,0.002,2034.3,2033.6,1.22934697]
[1772480552628,0.002,2034.3,2033.8,3.73270291]
[1772480553751,0.002,2034.3,2033.9,1.96]
[1772480554247,0.002,2034.6,2034.0,3.73270291]
[1772480554564,0.002,2034.6,2034.1,1.22904478]
[1772480554565,4.8778699,2034.6,2034.1,1.22904478]
[1772480556157,3.64912252,2034.6,2034.1,1.22904478]
[1772480556328,4.87786894,2034.6,2034.1,1.22904478]
[1772480556651,0.002,2034.3,2034.1,1.22904478]
[1772480557227,0.002,2034.6,2034.2,3.73270291]
[1772480557430,0.002,2034.6,2034.1,1.22904478]
[1772480557431,0.002,2034.8,2034.4,3.73270291]
[1772480557751,4.87775484,2034.8,2034.2,3.73270291]
[1772480557958,3.64912252,2034.8,2034.4,1.962]
[1772480558616,3.64912252,2034.8,2034.5,1.22880314]
[1772480559231,0.002,2035.1,2034.6,3.73270291]
[1772480559531,0.002,2035.1,2034.5,1.22880314]
[1772480559532,3.64712252,2035.0,2034.5,1.22880314]
[1772480560650,4.87564446,2035.0,2034.5,3.19280314]
[1772480560822,4.87564446,2035.0,2034.1,4.91597976]
[1772480560823,3.64712252,2034.5,2034.1,1.964]
[1772480561021,3.64712252,2034.8,2034.1,5.69670291]
[1772480561745,3.64712252,2034.8,2034.1,1.964]
[1772480561951,3.64712252,2034.8,2034.2,3.73270291]
[1772480562456,3.64712252,2034.8,2034.2,1.964]
[1772480562820,3.64712252,2034.6,2034.2,1.964]
[1772480563022,3.64712252,2034.6,2034.2,3.1929808]
[1772480563432,3.64712252,2034.6,2034.2,1.2289808]
[1772480564164,3.64712252,2034.6,2034.0,1.2290693]
[1772480564378,3.64712252,2034.6,2034.0,3.19309905]
[1772480564982,4.87592566,2034.5,2034.0,3.19309905]
[1772480565651,1.22880314,2034.5,2034.0,3.19309905]
[1772480565838,3.64712252,2034.4,2034.0,3.19309905]
[1772480568153,4.87603361,2034.4,2034.0,1.964]
[1772480568351,4.87603361,2034.4,2034.0,3.19309943]
[1772480568769,3.64712252,2034.4,2034.0,3.19309943]
[1772480569071,3.64712252,2034.4,2034.0,1.22909943]
[1772480569247,0.002,2034.2,2034.0,1.22909943]
[1772480569869,0.002,2034.4,2034.1,3.86889394]
[1772480570164,0.002,2034.4,2034.2,1.22898436]
[1772480571261,0.002,2034.4,2034.3,5.83789394]
[1772480572970,0.002,2034.4,2034.1,1.22902506]
[1772480574699,0.002,2034.4,2034.1,5.097919]
[1772480574881,0.002,2034.7,2034.4,3.86889394]
[1772480575065,0.002,2034.7,2034.5,1.974]
[1772480576964,0.002,2034.7,2034.6,1.22874275]
[1772480580702,0.002,2035.1,2034.6,7.07863669]
[1772480581086,3.7999342,2035.0,2034.7,1.981]
[1772480581900,0.002,2035.1,2034.7,1.981]
[1772480582590,0.002,2035.1,2034.6,5.09763669]
[1772480582591,3.7999342,2035.0,2034.2,8.78559976]
[1772480582769,3.7999342,2034.8,2034.2,1.22997733]
[1772480582969,0.002,2034.5,2034.3,3.21088256]
[1772480583678,0.002,2034.5,2034.3,1.982]
[1772480584005,0.002,2034.5,2034.2,1.984]
[1772480584006,3.8019342,2034.5,2034.2,1.984]
[1772480584894,3.8019342,2034.5,2034.2,0.001]
[1772480585204,5.03077069,2034.5,2034.2,1.985]
[1772480585389,3.7999342,2034.4,2034.2,0.001]
[1772480587514,5.02880832,2034.4,2034.2,0.001]
[1772480588009,3.7999342,2034.4,2034.2,0.001]
[1772480589518,1.23080452,2034.5,2034.2,0.001]
[1772480589815,0.002,2034.5,2034.2,0.001]
[1772480591199,1.23081353,2034.5,2034.2,0.001]
[1772480591414,3.7999342,2034.4,2034.2,0.001]
[1772480593617,5.02882213,2034.4,2034.2,0.001]
[1772480593822,3.7999342,2034.4,2034.2,0.001]
[1772480594023,0.002,2034.5,2034.2,0.001]
[1772480594526,3.7738748,2034.5,2034.2,0.001]
[1772480594698,0.002,2034.5,2034.2,0.001]
[1772480594898,3.7738748,2034.5,2034.2,0.001]
[1772480595519,5.00267875,2034.5,2034.2,0.001]
[1772480595830,3.7738748,2034.5,2034.2,0.001]
[1772480597100,3.7738748,2034.5,2034.4,0.001]
[1772480597826,5.00267794,2034.5,2034.4,0.001]
[1772480598509,3.7738748,2034.5,2034.4,0.001]
[1772480601651,5.00267794,2034.5,2034.4,0.001]
[1772480602556,3.7738748,2034.5,2034.4,0.001]
[1772480603049,5.00267794,2034.5,2034.4,0.001]
[1772480603351,1.23080314,2034.5,2034.2,0.001]
[1772480603529,3.74319776,2034.4,2034.2,0.001]
[1772480603729,0.002,2034.5,2034.2,0.001]
[1772480604240,4.97400692,2034.5,2034.2,0.001]
[1772480604566,3.74319776,2034.1,2033.8,0.001]
[1772480604721,3.74319776,2034.0,2033.3,3.68341681]
[1772480604921,3.74319776,2034.0,2033.1,4.91848258]
[1772480604922,3.74319776,2034.0,2033.2,1.989]
[1772480605337,3.74319776,2034.0,2033.2,3.21856611]
[1772480605653,3.74319776,2034.0,2033.2,1.989]
[1772480605847,3.74319776,2034.0,2033.2,3.21855776]
[1772480606048,3.74319776,2034.0,2033.3,1.22952763]
[1772480606238,3.74319776,2034.0,2033.3,1.22950573]
[1772480606558,3.74319776,2033.8,2033.3,1.22952835]
[1772480607336,1.22908503,2034.1,2033.5,3.68441681]
[1772480607750,4.97228279,2034.1,2033.5,3.68441681]
[1772480608452,3.74319776,2034.0,2033.5,0.001]
[1772480608879,4.9723634,2033.9,2033.5,0.001]
[1772480610152,3.74319776,2033.8,2033.5,0.001]